bitfinex/quotes_SOLUSD_20241115
["timestamp","ask_amount","ask_price","bid_price","bid_amount"]
[1731646866749,0.12549,206.29,206.23,23.67884904]
[1731646867151,23.67884904,206.3,206.23,23.67884904]
[1731646867555,28.52604904,206.31,206.24,23.67884904]
[1731646867760,23.67884904,206.3,206.23,23.67884904]
[1731646867959,5.3401617,206.32,206.24,23.67884904]
[1731646868157,23.67884904,206.26,206.19,23.67884904]
[1731646868358,0.12549,206.25,206.15,12.1269]
[1731646868561,0.12549,206.25,206.12,28.53024904]
[1731646868774,0.12549,206.25,206.12,4.8514]
[1731646868952,0.12549,206.23,206.11,23.67884904]
[1731646869148,23.67884904,206.18,206.11,23.67884904]
[1731646869559,23.67884904,206.22,206.15,23.67884904]
[1731646869747,23.67884904,206.2,206.13,23.67884904]
[1731646869955,23.67884904,206.2,206.13,28.53004904]
[1731646870159,21.17884904,206.2,206.13,28.53004904]
[1731646870654,23.67884904,206.21,206.14,23.67884904]
[1731646870856,0.12549,206.23,206.17,23.67884904]
[1731646871053,0.12549,206.23,206.13,16.9794]
[1731646871054,23.67884904,206.22,206.15,23.67884904]
[1731646871251,0.12549,206.23,206.2,23.67884904]
[1731646871560,0.12549,206.23,206.16,20.0]
[1731646872155,0.12549,206.23,206.17,16.9762]
[1731646872685,0.12549,206.23,206.18,23.67884904]
[1731646873360,0.12549,206.23,206.19,23.67884904]
[1731646873556,0.12549,206.23,206.2,23.67884904]
[1731646873782,0.12549,206.23,206.18,23.67884904]
[1731646874475,0.12549,206.23,206.19,36.9745]
[1731646874660,0.12549,206.23,206.22,43.67884904]
[1731646876254,0.12549,206.23,206.22,84.28243304]
[1731646876455,0.4932617,206.32,206.24,0.1]
[1731646876678,0.4932617,206.32,206.29,23.67884904]
[1731646877082,0.4932617,206.32,206.31,43.67884904]
[1731646878659,0.4932617,206.32,206.31,48.52584904]
[1731646880379,23.67884904,206.46,206.32,20.1]
[1731646880584,4.8434,206.47,206.41,23.67884904]
[1731646880758,4.8429,206.49,206.43,23.67884904]
[1731646880959,28.52134904,206.51,206.44,23.67884904]
[1731646881359,23.67884904,206.49,206.42,23.67884904]
[1731646882173,23.67884904,206.48,206.41,35.79064904]
[1731646883075,0.12549,206.47,206.41,35.79064904]
[1731646883483,0.12549,206.47,206.42,23.67884904]
[1731646884386,23.67884904,206.43,206.36,35.79334904]
[1731646884969,0.12549,206.44,206.38,23.67884904]
[1731646885174,23.80433904,206.44,206.37,23.67884904]
[1731646885777,23.80433904,206.44,206.37,28.52434904]
[1731646886487,23.80433904,206.45,206.38,23.67884904]
[1731646887764,0.12549,206.42,206.37,35.79294904]
[1731646888168,23.67884904,206.45,206.39,23.67884904]
[1731646888366,23.67884904,206.46,206.39,23.67884904]
[1731646888593,6.0019,206.47,206.41,23.67884904]
[1731646888972,0.12549,206.46,206.41,23.67884904]
[1731646889671,0.12549,206.46,206.4,23.67884904]
[1731646890378,0.12549,206.42,206.37,12.1141]
[1731646890800,0.12549,206.37,206.25,46.4965]
[1731646890987,23.67884904,206.36,206.29,23.67884904]
[1731646891213,0.12549,206.37,206.25,46.4965]
[1731646891421,23.776884,206.44,206.27,12.1196]
[1731646891578,23.776884,206.43,206.27,16.9676]
[1731646891883,0.12549,206.42,206.27,16.9676]
[1731646892089,0.12549,206.42,206.22,6.4513]
[1731646892090,44.002374,206.39,206.22,12.1224]
[1731646892279,23.67884904,206.3,206.23,23.67884904]
[1731646892481,23.67884904,206.31,206.24,23.67884904]
[1731646892680,23.67884904,206.32,206.25,23.67884904]
[1731646892880,0.12549,206.3,206.25,23.67884904]
[1731646893368,0.12549,206.31,206.26,23.67884904]
[1731646893569,23.80433904,206.31,206.25,23.67884904]
[1731646893871,23.67884904,206.33,206.26,23.67884904]
[1731646894086,23.67884904,206.34,206.27,23.67884904]
[1731646894691,0.12549,206.33,206.27,23.67884904]
[1731646895199,23.67884904,206.34,206.27,23.67884904]
[1731646895405,23.67884904,206.35,206.28,23.67884904]
[1731646895581,23.67884904,206.34,206.27,23.67884904]
[1731646895781,6.5196,206.4,206.25,0.1]
[1731646896099,6.5196,206.4,206.34,23.67884904]
[1731646896410,30.19844904,206.4,206.33,23.67884904]
[1731646896579,0.12549,206.39,206.33,23.67884904]
[1731646896979,11.3646,206.4,206.34,23.67884904]
[1731646897297,0.12549,206.39,206.34,23.67884904]
[1731646897902,4.8446,206.42,206.36,23.67884904]
[1731646898101,28.52344904,206.42,206.34,23.67884904]
[1731646898306,23.67884904,206.39,206.32,23.67884904]
[1731646898478,23.67884904,206.37,206.3,23.67884904]
[1731646898681,23.67884904,206.39,206.31,23.67884904]
[1731646899102,0.12549,206.38,206.31,23.67884904]
[1731646899297,23.67884904,206.41,206.34,23.67884904]
[1731646899611,0.12549,206.39,206.33,23.67884904]
[1731646899905,0.12549,206.39,206.31,23.67884904]
[1731646900094,23.80433904,206.35,206.28,23.67884904]
[1731646900408,23.80433904,206.33,206.26,12.1204]
[1731646900899,6.1124,206.35,206.26,12.1204]
[1731646900900,23.80433904,206.34,206.27,23.67884904]
[1731646901105,6.1124,206.35,206.31,23.67884904]
[1731646901319,0.12549,206.37,206.31,23.67884904]
[1731646901722,0.12549,206.37,206.32,23.67884904]
[1731646902103,4.8456,206.38,206.32,23.67884904]
[1731646902309,0.12549,206.37,206.32,23.67884904]
[1731646902709,23.80433904,206.37,206.3,23.67884904]
[1731646902928,23.80433904,206.35,206.28,23.67884904]
[1731646903130,0.12549,206.35,206.28,23.67884904]
[1731646903328,4.97169,206.35,206.29,23.67884904]
[1731646904529,23.67884904,206.38,206.31,23.67884904]
[1731646905119,0.12549,206.35,206.26,35.79944904]
[1731646905323,23.80433904,206.3,206.23,28.52754904]
[1731646905709,0.12549,206.3,206.24,23.67884904]
[1731646906027,28.52584904,206.31,206.18,24.2501]
[1731646906028,23.67884904,206.27,206.21,23.67884904]
[1731646906225,23.67884904,206.3,206.23,23.67884904]
[1731646906721,23.67884904,206.33,206.26,23.67884904]
[1731646907231,23.80433904,206.32,206.25,23.67884904]
[1731646907407,0.12549,206.3,206.23,23.67884904]
[1731646907821,23.80433904,206.3,206.23,23.67884904]
[1731646908010,4.847,206.32,206.2,16.9737]
[1731646908011,23.67884904,206.29,206.22,23.67884904]
[1731646908607,0.12549,206.28,206.22,23.67884904]
[1731646909009,0.12549,206.28,206.23,23.67884904]
[1731646909407,0.12549,206.29,206.23,23.67884904]
[1731646909708,0.12549,206.29,206.23,28.52764904]
[1731646910625,23.80433904,206.29,206.23,4.8488]
[1731646911299,0.12549,206.29,206.2,12.1241]
[1731646911513,0.12549,206.29,206.23,23.67884904]
[1731646912321,4.8464,206.34,206.28,23.67884904]
[1731646912528,43.68144904,206.36,206.28,23.67884904]
[1731646912812,23.67884904,206.35,206.28,23.67884904]
[1731646913001,23.80433904,206.29,206.2,35.80294904]
[1731646913215,23.67884904,206.24,206.17,28.52914904]
[1731646913410,23.80433904,206.21,206.15,4.8506]
[1731646913639,23.67884904,206.2,206.15,4.8506]
[1731646913978,23.80433904,206.21,206.15,4.8506]
[1731646914220,23.67884904,206.21,206.15,4.8506]
[1731646914743,23.67884904,206.21,205.95,21.6625]
[1731646914744,0.1,206.14,205.95,21.6625]
[1731646914901,0.1,206.14,205.97,23.67884904]
[1731646914902,0.12549,206.04,205.97,23.67884904]
[1731646915219,23.67884904,206.07,205.99,23.67884904]
[1731646915900,23.67884904,206.08,206.0,28.53314904]
[1731646916299,23.67884904,206.1,206.02,23.67884904]
[1731646916506,23.67884904,206.09,206.0,16.9902]
[1731646916713,23.67884904,206.07,206.0,40.66904904]
[1731646917027,23.67884904,206.08,206.01,23.67884904]
[1731646917192,23.67884904,206.08,206.0,16.9902]
[1731646917193,23.67884904,206.1,206.02,23.67884904]
[1731646917393,23.67884904,206.08,206.01,23.67884904]
[1731646917797,23.67884904,206.08,206.01,28.53274904]
[1731646918005,23.67884904,206.1,206.03,23.67884904]
[1731646918210,23.67884904,206.13,206.06,23.67884904]
[1731646918823,23.67884904,206.1,206.03,23.67884904]
[1731646919024,23.67884904,206.09,206.02,23.67884904]
[1731646919316,23.80433904,206.12,206.05,23.67884904]
[1731646919519,23.67884904,206.12,206.05,23.67884904]
[1731646919903,23.67884904,206.1,206.03,28.53244904]
[1731646920224,23.67884904,206.12,206.05,23.67884904]
[1731646920396,4.8508,206.15,206.03,24.8536]
[1731646920397,4.8508,206.15,206.03,48.53244904]
[1731646920596,23.67884904,206.08,206.03,24.8536]
[1731646920796,0.12549,206.14,206.03,24.8536]
[1731646920797,23.67884904,206.09,206.03,24.8536]
[1731646921019,23.67884904,206.09,206.03,36.9877]
[1731646921321,23.67884904,206.08,206.03,36.9877]
[1731646921525,23.67884904,206.06,206.03,12.1341]
[1731646921703,47.35769808,206.04,205.97,12.1371]
[1731646921906,23.67884904,205.98,205.92,12.1404]
[1731646922104,23.67884904,205.94,205.92,12.1404]
[1731646922406,6.1101,206.06,205.92,35.81924904]
[1731646922602,23.67884904,205.99,205.92,35.81924904]
[1731646922805,23.67884904,205.97,205.92,12.1404]
[1731646923008,4.8537,206.03,205.92,35.81924904]
[1731646923207,10.9631,206.06,205.92,12.1404]
[1731646923618,4.853,206.06,205.92,12.1404]
[1731646924220,23.67884904,206.01,205.94,23.67884904]
[1731646924446,6.3127,206.11,205.98,23.67884904]
[1731646924599,12.2309,206.17,205.98,23.67884904]
[1731646924600,23.67884904,206.1,206.04,23.67884904]
[1731646924805,23.67884904,206.09,206.02,23.67884904]
[1731646925006,29.99154904,206.16,206.01,15.6962]
[1731646925220,0.12549,206.15,206.01,15.6962]
[1731646925424,0.1,206.14,205.93,40.148384]
[1731646925616,0.1,206.14,205.93,40.248384]
[1731646925923,0.12549,206.13,205.93,40.248384]
[1731646926125,161.6,206.15,206.02,23.67884904]
[1731646926126,23.67884904,206.09,206.02,23.67884904]
[1731646926332,23.67884904,206.12,206.05,23.67884904]
[1731646926503,23.67884904,206.13,206.06,23.67884904]
[1731646927313,6.3127,206.16,206.03,16.9877]
[1731646927314,23.67884904,206.16,206.09,23.67884904]
[1731646927515,23.67884904,206.14,206.09,20.0]
[1731646927810,23.67884904,206.12,206.05,23.67884904]
[1731646928024,23.67884904,206.11,206.04,83.82843304]
[1731646928217,23.67884904,206.11,206.04,60.05154904]
[1731646928417,23.67884904,206.11,205.98,0.1]
[1731646928418,0.1,206.15,205.98,16.3727]
[1731646928732,23.67884904,206.03,205.99,4.8546]
[1731646929037,6.26975551,206.15,205.99,16.9911]
[1731646929038,0.1,206.15,205.99,16.9911]
[1731646929224,24.002374,206.15,205.99,16.9911]
[1731646929811,23.902374,206.13,205.99,16.9911]
[1731646930009,23.67884904,206.05,205.99,16.9911]
[1731646930433,23.67884904,206.09,206.02,23.67884904]
[1731646930644,23.67884904,206.11,206.04,23.67884904]
[1731646930835,23.67884904,206.1,206.04,20.0]
[1731646931342,23.67884904,206.11,206.04,23.67884904]
[1731646931507,0.22549,206.15,205.99,16.9911]
[1731646931713,6.29524551,206.15,205.99,12.1365]
[1731646931916,4.851,206.14,205.99,16.9911]
[1731646932319,23.902374,206.13,205.99,16.9911]
[1731646932727,23.67884904,206.04,205.99,16.9911]
[1731646933336,23.67884904,206.07,206.0,23.67884904]
[1731646933509,23.67884904,206.04,205.99,16.9911]
[1731646933912,23.67884904,206.0,205.93,16.2975]
[1731646934212,6.0552,206.09,205.93,16.3975]
[1731646934520,6.0552,206.09,205.95,0.1]
[1731646934833,4.8519,206.11,205.95,0.1]
[1731646935015,23.902374,206.1,205.93,16.2975]
[1731646935220,23.67884904,206.05,205.98,28.53354904]
[1731646935537,23.67884904,206.07,206.0,23.67884904]
[1731646935830,23.67884904,206.05,205.98,28.53354904]
[1731646936213,23.67884904,206.04,205.98,4.8547]
[1731646936414,23.67884904,206.04,205.98,16.9918]
[1731646936625,23.67884904,206.05,205.98,35.81594904]
[1731646936819,23.67884904,206.02,205.98,12.1371]
[1731646937144,23.67884904,206.04,205.98,12.1371]
[1731646937433,23.67884904,206.05,205.98,35.81594904]
[1731646937750,23.67884904,206.04,205.98,12.1371]
[1731646937914,23.67884904,206.03,205.98,12.1371]
[1731646938111,23.67884904,206.07,205.98,16.9919]
[1731646938338,23.67884904,206.07,206.0,23.67884904]
[1731646938540,23.67884904,206.01,205.98,12.1371]
[1731646938721,23.67884904,206.03,205.98,12.1371]
[1731646939048,0.12549,206.08,205.98,16.9919]
[1731646939337,0.12549,206.09,205.98,16.9919]
[1731646939925,23.67884904,206.05,205.99,23.67884904]
[1731646940146,23.67884904,206.02,205.98,16.9919]
[1731646940318,23.67884904,205.99,205.93,12.1398]
[1731646940521,23.67884904,205.94,205.88,16.9995]
[1731646940733,0.1,206.0,205.87,15.1513]
[1731646941222,24.002374,206.02,205.87,15.1513]
[1731646941546,23.67884904,205.91,205.87,15.1513]
[1731646941715,23.67884904,205.9,205.87,15.1513]
[1731646941920,24.002374,206.02,205.83,17.0039]
[1731646941921,23.67884904,205.89,205.83,17.0039]
[1731646944342,23.67884904,205.9,205.83,40.68274904]
[1731646944532,23.67884904,205.91,205.84,23.67884904]
[1731646944729,23.67884904,205.93,205.86,23.67884904]
[1731646944937,23.67884904,205.94,205.88,23.67884904]
[1731646945246,23.67884904,205.96,205.89,23.67884904]
[1731646945626,23.67884904,205.98,205.91,23.67884904]
[1731646945951,23.67884904,206.01,205.94,23.67884904]
[1731646946241,23.67884904,205.99,205.92,40.15144904]
[1731646946442,23.67884904,205.98,205.92,16.4726]
[1731646946647,4.8543,206.01,205.92,45.00744904]
[1731646946939,23.67884904,206.0,205.93,23.67884904]
[1731646947319,23.67884904,205.99,205.92,57.14804904]
[1731646947723,23.67884904,206.0,205.93,23.67884904]
[1731646947922,23.67884904,206.02,205.95,23.67884904]
[1731646948150,23.67884904,206.06,205.93,43.902374]
[1731646948325,23.77884904,206.16,205.93,43.902374]
[1731646948326,23.67884904,206.08,206.01,23.67884904]
[1731646948521,23.67884904,206.09,206.02,23.67884904]
[1731646949342,23.67884904,206.09,206.03,4.8536]
[1731646949543,23.67884904,206.09,206.02,23.67884904]
[1731646949926,23.67884904,206.09,206.02,28.53254904]
[1731646950761,4.852,206.1,206.02,28.53254904]
[1731646950762,23.67884904,206.1,206.03,23.67884904]
[1731646951322,23.67884904,206.11,206.05,23.67884904]
[1731646951521,23.67884904,206.12,206.05,23.67884904]
[1731646951761,23.67884904,206.11,206.04,23.67884904]
[1731646952050,23.67884904,206.08,206.03,12.1341]
[1731646952343,0.12549,206.11,206.03,12.1341]
[1731646952344,23.67884904,206.07,206.03,12.1341]
[1731646953344,23.67884904,206.08,206.03,12.1341]
[1731646953643,28.53084904,206.1,206.03,35.81294904]
[1731646954035,23.67884904,206.09,206.03,12.1341]
[1731646954222,23.67884904,206.09,206.03,16.9877]
[1731646954423,28.53084904,206.1,206.03,40.66654904]
[1731646954828,23.67884904,206.1,206.04,23.67884904]
[1731646955267,161.6,206.18,206.06,23.67884904]
[1731646955560,23.67884904,206.16,206.09,23.67884904]
[1731646956342,23.67884904,206.17,206.1,23.67884904]
[1731646956563,23.67884904,206.16,206.09,35.80914904]
[1731646956754,23.67884904,206.17,206.1,23.67884904]
[1731646956955,23.67884904,206.18,206.11,23.67884904]
[1731646957159,23.67884904,206.16,206.09,35.80914904]
[1731646957459,23.67884904,206.15,206.09,12.1303]
[1731646957664,23.67884904,206.16,206.09,35.80914904]
[1731646957958,23.67884904,206.1,206.03,32.2666]
[1731646958169,0.1,206.17,205.96,0.1]
[1731646958170,23.67884904,206.05,205.98,28.7107]
[1731646958340,23.67884904,206.03,205.98,33.5653]
[1731646958759,23.67884904,206.05,205.98,57.24414904]
[1731646958989,23.67884904,206.04,205.98,57.24414904]
[1731646959278,23.67884904,206.07,206.01,23.67884904]
[1731646959562,23.67884904,206.05,205.98,57.24414904]
[1731646959744,23.67884904,206.06,205.99,23.67884904]
[1731646960140,23.67884904,206.07,206.0,23.67884904]
[1731646960345,23.67884904,206.07,206.01,4.8541]
[1731646960973,23.67884904,206.02,205.96,4.8552]
[1731646961274,23.67884904,206.0,205.93,50.94874904]
[1731646961658,23.902374,206.08,205.94,40.67384904]
[1731646961841,23.67884904,206.01,205.94,40.67384904]
[1731646962043,23.67884904,206.04,205.97,23.67884904]
[1731646962267,23.67884904,206.05,205.97,23.67884904]
[1731646962473,23.67884904,206.04,205.98,4.8548]
[1731646962644,23.67884904,206.04,205.98,16.9919]
[1731646963158,23.67884904,206.01,205.94,23.67884904]
[1731646963467,23.67884904,206.02,205.95,23.67884904]
[1731646964049,23.67884904,206.04,205.96,23.67884904]
[1731646964264,23.80433904,206.06,205.99,23.67884904]
[1731646964452,23.67884904,206.04,205.98,12.1366]
[1731646964656,23.67884904,206.03,205.98,12.1366]
[1731646965845,23.67884904,206.04,205.98,12.1366]
[1731646966152,23.67884904,206.05,205.98,35.81544904]
[1731646966671,23.67884904,206.05,205.98,40.67024904]
[1731646966883,23.67884904,206.04,205.98,16.9914]
[1731646967369,23.67884904,205.99,205.93,15.1304]
[1731646967556,23.67884904,205.97,205.93,15.1304]
[1731646967761,23.67884904,205.96,205.93,15.1304]
[1731646967980,23.67884904,205.95,205.88,39.75614904]
[1731646968154,23.67884904,205.96,205.89,23.67884904]
[1731646968352,23.67884904,205.98,205.91,23.67884904]
[1731646968854,23.67884904,206.01,205.94,23.67884904]
[1731646969053,23.67884904,206.06,205.99,23.67884904]
[1731646969361,23.67884904,206.08,206.01,23.67884904]
[1731646970071,4.97819,206.07,206.01,23.67884904]
[1731646971372,23.67884904,206.11,206.04,23.67884904]
[1731646971676,23.67884904,206.05,205.98,39.75614904]
[1731646971973,23.67884904,206.05,205.98,16.0773]
[1731646972359,23.67884904,206.04,205.98,16.0773]
[1731646972769,23.67884904,206.04,205.98,20.932]
[1731646973281,23.67884904,206.08,206.01,23.67884904]
[1731646973458,23.67884904,206.06,205.99,23.67884904]
[1731646973864,6.7243,206.14,205.98,33.0691]
[1731646974059,23.67884904,206.09,206.02,23.67884904]
[1731646974362,0.12549,206.09,206.03,23.67884904]
[1731646974861,0.12549,206.09,206.04,4.8534]
[1731646975066,0.12549,206.09,206.03,23.67884904]
[1731646975371,23.80433904,206.09,206.02,40.66684904]
[1731646975556,23.67884904,206.08,206.02,16.988]
[1731646976087,23.67884904,206.05,205.98,51.89314904]
[1731646976374,23.67884904,206.06,205.99,23.67884904]
[1731646976552,23.67884904,206.07,206.0,23.67884904]
[1731646976757,23.67884904,206.08,206.01,40.66824904]
[1731646976956,28.53134904,206.08,206.01,16.9894]
[1731646977280,23.67884904,206.07,206.01,16.9894]
[1731646977461,23.80433904,206.06,205.99,28.53324904]
[1731646977957,23.67884904,206.02,205.98,16.0773]
[1731646978281,23.67884904,206.01,205.97,12.1375]
[1731646978490,0.12549,205.97,205.92,15.8885]
[1731646978776,0.12549,205.97,205.86,6.5212]
[1731646978777,23.67884904,205.93,205.87,32.8889]
[1731646978959,23.67884904,205.92,205.87,32.8889]
[1731646979155,23.67884904,205.96,205.89,23.67884904]
[1731646979354,6.1462,206.04,205.88,0.22549]
[1731646979552,4.8527,206.07,205.88,0.12549]
[1731646979761,0.12549,206.06,205.88,0.12549]
[1731646979952,0.12549,206.06,205.89,0.1]
[1731646980170,0.12549,206.06,205.89,20.1]
[1731646980363,23.67884904,206.02,205.95,23.67884904]
[1731646980571,23.67884904,206.03,205.96,23.67884904]
[1731646980768,28.53244904,206.03,205.96,23.67884904]
[1731646981177,0.12549,206.06,205.96,16.9934]
[1731646981390,23.67884904,206.07,206.0,23.67884904]
[1731646981562,23.67884904,206.08,206.01,23.67884904]
[1731646981766,23.67884904,206.07,206.0,23.67884904]
[1731646982158,23.67884904,206.1,205.97,22.967]
[1731646982366,6.1462,206.15,206.05,23.67884904]
[1731646982367,23.67884904,206.12,206.05,23.67884904]
[1731646982579,6.1462,206.15,206.03,23.67884904]
[1731646982580,23.67884904,206.1,206.03,23.67884904]
[1731646982782,4.851,206.14,206.05,23.67884904]
[1731646983084,192.01809753,206.2,206.07,23.67884904]
[1731646983085,4.8507,206.16,206.07,23.67884904]
[1731646983262,23.67884904,206.14,206.07,23.67884904]
[1731646983892,23.80433904,206.15,206.08,23.67884904]
[1731646984101,23.67884904,206.13,206.07,4.8525]
[1731646984385,23.67884904,206.15,206.08,23.67884904]
[1731646984759,23.67884904,206.13,206.07,16.9842]
[1731646984981,23.67884904,206.11,206.05,4.8531]
[1731646985383,23.67884904,206.14,206.07,23.67884904]
[1731646985579,23.67884904,206.13,206.06,23.67884904]
[1731646985888,23.67884904,206.12,206.05,40.66484904]
[1731646986064,23.67884904,206.13,206.06,23.67884904]
[1731646986258,23.67884904,206.13,206.07,16.9844]
[1731646986561,23.67884904,206.14,206.07,40.66324904]
[1731646988882,23.67884904,206.17,206.1,23.67884904]
[1731646989371,23.67884904,206.2,206.13,23.67884904]
[1731646989574,23.67884904,206.17,206.1,23.67884904]
[1731646989793,23.67884904,206.16,206.09,40.66164904]
[1731646990084,23.67884904,206.19,206.12,23.67884904]
[1731646990293,23.67884904,206.21,206.14,23.67884904]
[1731646990464,28.52784904,206.23,206.15,23.67884904]
[1731646990660,23.67884904,206.23,206.15,23.67884904]
[1731646990877,23.67884904,206.2,206.13,23.67884904]
[1731646991081,23.67884904,206.19,206.12,23.67884904]
[1731646991387,23.67884904,206.2,206.13,23.67884904]
[1731646991599,23.67884904,206.22,206.14,23.67884904]
[1731646992266,23.67884904,206.2,206.13,23.67884904]
[1731646992662,23.67884904,206.2,206.13,28.52984904]
[1731646992878,23.80433904,206.21,206.14,23.67884904]
[1731646993068,23.67884904,206.2,206.13,16.9792]
[1731646993269,23.80433904,206.15,206.08,28.6616]
[1731646993487,23.876884,206.22,206.1,23.67884904]
[1731646993685,23.776884,206.23,206.08,33.514]
[1731646993890,4.8487,206.24,206.08,57.7764]
[1731646994097,6.5402,206.3,206.1,0.1]
[1731646994271,6.5402,206.3,206.12,6.0275]
[1731646994590,0.12549,206.29,206.13,20.0]
[1731646994892,6.5402,206.3,206.16,16.3032]
[1731646994893,4.8473,206.3,206.16,16.3032]
[1731646995097,23.67884904,206.22,206.16,16.3032]
[1731646995286,23.67884904,206.17,206.11,16.3032]
[1731646995596,23.67884904,206.14,206.11,16.3032]
[1731646995785,23.67884904,206.13,206.09,12.1301]
[1731646995969,23.67884904,206.12,206.07,6.0275]
[1731646996175,23.67884904,206.13,206.06,38.84934904]
[1731646996390,23.67884904,206.14,206.07,23.67884904]
[1731646996797,23.67884904,206.14,206.08,4.8524]
[1731646997176,23.67884904,206.15,206.08,28.53124904]
[1731646997494,18.3261,206.24,206.08,28.53124904]
[1731646997495,23.67884904,206.19,206.12,23.67884904]
[1731646998093,23.67884904,206.21,206.13,23.67884904]
[1731646998293,23.67884904,206.21,206.14,23.67884904]
[1731646998495,23.67884904,206.23,206.15,23.67884904]
[1731646998694,23.67884904,206.23,206.16,23.67884904]
[1731646998878,23.67884904,206.24,206.17,23.67884904]
[1731646999077,23.67884904,206.25,206.18,23.67884904]
[1731646999596,4.8482,206.26,206.16,27.6939]
[1731646999597,23.67884904,206.29,206.22,23.67884904]
[1731646999982,23.67884904,206.28,206.21,23.67884904]
[1731647000501,23.67884904,206.29,206.21,23.67884904]
[1731647000877,23.67884904,206.27,206.2,28.52834904]
[1731647001077,23.67884904,206.26,206.2,4.8495]
[1731647001507,23.67884904,206.23,206.17,12.1259]
[1731647001678,23.67884904,206.21,206.16,15.5679]
[1731647002380,0.12549,206.27,206.16,15.5679]
[1731647002381,23.67884904,206.2,206.16,15.5679]
[1731647003099,23.67884904,206.21,206.16,15.5679]
[1731647004304,23.67884904,206.24,206.17,40.65504904]
[1731647004600,6.6496,206.35,206.23,23.67884904]
[1731647004897,23.67884904,206.31,206.24,23.67884904]
[1731647005096,23.67884904,206.31,206.17,41.328]
[1731647005097,23.67884904,206.32,206.25,23.67884904]
[1731647005801,4.8469,206.32,206.25,28.52714904]
[1731647006111,23.67884904,206.31,206.25,4.8483]
[1731647007296,23.67884904,206.3,206.23,28.52774904]
[1731647007498,23.67884904,206.31,206.24,23.67884904]
[1731647008820,23.67884904,206.31,206.25,4.8484]
[1731647009611,28.52564904,206.32,206.25,4.8484]
[1731647009809,23.67884904,206.31,206.25,4.8484]
[1731647011292,23.67884904,206.32,206.26,15.1592]
[1731647011524,23.67884904,206.31,206.26,15.1592]
[1731647012296,4.8456,206.37,206.26,15.1592]
[1731647012297,23.67884904,206.3,206.26,15.1592]
[1731647012492,23.67884904,206.28,206.22,4.849]
[1731647012809,23.67884904,206.23,206.21,15.8549]
[1731647013108,23.67884904,206.22,206.17,4.8502]
[1731647013413,23.67884904,206.21,206.17,4.8502]
[1731647013584,23.67884904,206.2,206.16,32.7838]
[1731647013991,23.67884904,206.22,206.16,32.7838]
[1731647014504,23.67884904,206.27,206.2,23.67884904]
[1731647014706,4.847,206.31,206.22,23.67884904]
[1731647014908,23.67884904,206.31,206.24,15.4862]
[1731647015700,23.67884904,206.31,206.24,39.16504904]
[1731647016100,23.67884904,206.31,206.25,4.8484]
[1731647016817,23.67884904,206.36,206.29,23.67884904]
[1731647017104,23.67884904,206.39,206.32,23.67884904]
[1731647017507,23.67884904,206.39,206.31,23.67884904]
[1731647017699,4.8448,206.41,206.27,6.1855]
[1731647017700,23.67884904,206.36,206.29,23.67884904]
[1731647018010,4.8448,206.41,206.27,6.1855]
[1731647018011,23.67884904,206.37,206.3,23.67884904]
[1731647018202,23.67884904,206.37,206.31,4.847]
[1731647019419,23.67884904,206.34,206.31,12.1176]
[1731647019592,23.67884904,206.33,206.27,11.0333]
[1731647019787,23.67884904,206.33,206.27,4.8478]
[1731647019993,23.67884904,206.33,206.27,16.9678]
[1731647021706,23.67884904,206.28,206.25,4.8483]
[1731647021897,23.67884904,206.27,206.24,15.4862]
[1731647022088,23.67884904,206.28,206.24,20.3348]
[1731647023501,23.67884904,206.29,206.24,20.3348]
[1731647024116,23.67884904,206.28,206.24,20.3348]
[1731647024318,23.67884904,206.28,206.24,15.4862]
[1731647024915,23.67884904,206.3,206.24,32.4565]
[1731647025416,4.8465,206.34,206.19,27.3412]
[1731647025417,23.67884904,206.25,206.19,27.3412]
[1731647025724,0.22549,206.31,206.19,15.217]
[1731647026018,20.12549,206.31,206.19,32.1915]
[1731647026219,23.67884904,206.26,206.19,55.87034904]
[1731647026411,23.67884904,206.32,206.24,23.67884904]
[1731647026617,6.642,206.38,206.24,23.67884904]
[1731647026618,23.67884904,206.31,206.24,23.67884904]
[1731647026815,4.846,206.36,206.24,23.67884904]
[1731647026816,23.67884904,206.32,206.24,23.67884904]
[1731647027318,23.67884904,206.32,206.25,23.67884904]
[1731647027615,23.67884904,206.32,206.26,16.9688]
[1731647027926,23.67884904,206.31,206.26,16.9688]
[1731647028111,23.67884904,206.28,206.21,35.80184904]
[1731647028316,23.67884904,206.31,206.23,23.67884904]
[1731647029408,23.67884904,206.32,206.25,23.67884904]
[1731647029818,23.67884904,206.31,206.24,35.80054904]
[1731647030014,23.67884904,206.3,206.24,12.1217]